Cogmind - Beta 10.2 @@@ ROGUE MODE // 2022.02.06 @ 14:25:36 Player: Kaz Result: Destroyed by as-44932 with Assembled Maul Performance ------------- Evolutions (0) 0 Regions Visited (2) 400 Robots Destroyed (13) 65 Value Destroyed (332) 332 Prototype IDs (0) 0 Alien Tech Used (0) 0 Bonus (0) 0 TOTAL SCORE: 797 Bonus ------- None Cogmind --------- Core Integrity 0/250 Matter 263/300 Energy 85/100 System Corruption 0% Temperature Cool (0) Movement Core (600) Ox11 Location -10/Mines Parts ------- > --- POWER (1) -------- (None) > --- PROPULSION (2) --- Light Treads > --- UTILITY (2) ------ Large Storage Unit Large Storage Unit > --- WEAPON (2) ------- Assault Rifle > --- INVENTORY (16) --- Ion Engine Light Treads Small Storage Unit Large Storage Unit High-capacity Matter Pod (80) Beam Cannon Assault Rifle Light Assault Rifle Light Assault Rifle Light Assault Rifle Peak State ------------ > --- POWER ------------ Light Nuclear Core > --- PROPULSION ------- Compact Wheel > --- UTILITY ---------- Large Storage Unit Large Storage Unit > --- WEAPON ----------- Assault Rifle Assault Rifle > --- INVENTORY -------- Ion Engine Light Treads Light Treads Small Storage Unit Large Storage Unit High-capacity Matter Pod Beam Cannon Light Assault Rifle Light Assault Rifle Light Assault Rifle Grenade Launcher [Rating: 9] Favorites ----------- Power Light Ion Engine Engine Light Ion Engine Power Core Light Nuclear Core Propulsion Compact Wheel Treads Light Treads Wheel Compact Wheel Utility Large Storage Unit Storage Large Storage Unit Weapon Assault Rifle Ballistic Gun Assault Rifle Launcher Grenade Launcher Build | -11 -10 -10 ------- Run | Scr Mat Min Slots Evolved . | . . . Power . | . . . Propulsion . | . . . Utility . | . . . Weapon . | . . . Parts Attached 15 | 6 5 4 Power 3 | 1 1 1 Engine 2 | 1 1 . Core 1 | . . 1 Reactor . | . . . Propulsion 3 | 2 . 1 Treads 1 | . . 1 Leg . | . . . Wheel 2 | 2 . . Hover . | . . . Flight . | . . . Utility 3 | 1 2 . Device . | . . . Storage 3 | 1 2 . Processor . | . . . Hackware . | . . . Protection . | . . . Artifact . | . . . Weapon 6 | 2 2 2 Energy Gun . | . . . Energy Cannon . | . . . Ballistic Gun 5 | 2 2 1 Ballistic Cannon . | . . . Launcher 1 | . . 1 Special Weapon . | . . . Impact Weapon . | . . . Slashing Weapon . | . . . Piercing Weapon . | . . . Special Melee Weapon . | . . . Unidentified Prototypes . | . . . Parts Lost 4 | . . 4 Power 1 | . . 1 Propulsion 2 | . . 2 Utility . | . . . Weapon 1 | . . 1 Highest Loss Streak 3 | . . 3 Average Slot Usage (%) 96 | . 97 93 Engine 12 | . 14 11 Wheel 25 | . 28 22 Storage 26 | . 25 28 Ballistic Gun 27 | . 28 27 Naked Turns . | . . . Heaviest Build 41 | 10 40 41 Greatest Support 26 | 26 26 26 Greatest Overweight (x) 2 | . 1 2 Average Overweight (x) . | . . 1 Largest Inventory Capacity 16 | 6 16 16 Average Capacity 14 | 5 14 16 Most Carried 11 | 3 10 11 Average Carried 7 | 2 6 10 Final Capacity 16 | 6 16 16 Final Carried 10 | 3 9 10 Class Distribution -------------------- 100% | Mutant Dominant Class ---------------- Mutant | -10/Materials Mutant | -10/Mines Resources | -11 -10 -10 ----------- Run | Scr Mat Min Matter Collected 557 | 205 216 136 Remotely . | . . . Salvage Created 406 | . 279 127 Parts 38 | . 27 11 Haulers Intercepted 1 | . 1 . Recyclers Shooed . | . . . Parts Field Recycled . | . . . Retrieved Matter . | . . . Parts Self-Destructed . | . . . Prevented . | . . . Kills | -11 -10 -10 ------- Run | Scr Mat Min Combat Hostiles Destroyed 10 | . 7 3 Guns 10 | . 7 3 Classes Destroyed 6 | . 4 2 Worker 1 | . . 1 Hauler 1 | . 1 . Watcher 1 | . 1 . Swarmer 3 | . 3 . Grunt 6 | . 4 2 Demolisher 1 | . . 1 Best Kill Streak 5 | . 5 2 Combat Bots Only 3 | . 3 2 Max Kills in Single Turn 1 | . 1 1 Gunslinging . | . . . Exploded . | . . . Melee . | . . . Uniques/NPCs Destroyed . | . . . Combat | -11 -10 -10 -------- Run | Scr Mat Min Damage Taken 796 | . 263 533 Core 254 | . 85 169 Absorbed by Shields . | . . . Core Remaining (%) 100 | 100 . . Volleys Fired 40 | . 30 10 Largest 2 | . 2 2 Hottest 50 | . 40 50 Shots Fired 79 | . 60 19 Gun 78 | . 60 18 Cannon . | . . . Launcher 1 | . . 1 Special . | . . . Kinetic 78 | . 60 18 Thermal . | . . . Explosive 1 | . . 1 Electromagnetic . | . . . Robot Hit Streak 7 | . 3 7 Robot Miss Streak 5 | . 5 2 Penetration Max . | . . . Secondary Targets . | . . . Shots Hit Robots 44 | . 31 13 Core Hits 24 | . 15 9 Critical Hits . | . . . Critical Kills . | . . . Critical Parts Destroyed . | . . . Melee Attacks . | . . . Impact . | . . . Slashing . | . . . Piercing . | . . . Sneak Attacks . | . . . Combat Hostiles . | . . . Follow-up Attacks . | . . . Damage Inflicted 535 | . 339 196 Guns 475 | . 339 136 Cannons . | . . . Explosions 60 | . . 60 Melee . | . . . Ramming . | . . . Kinetic 475 | . 339 136 Thermal . | . . . Explosive 60 | . . 60 Electromagnetic . | . . . Impact . | . . . Slashing . | . . . Piercing . | . . . Highest Corruption . | . . . Average Corruption . | . . . Corruption Purged . | . . . Overload Shots . | . . . Overflow Damage . | . . . Projectiles . | . . . Explosions . | . . . Melee . | . . . Knockbacks . | . . . Impact . | . . . Kinetic . | . . . Secondary . | . . . Self-Inflicted Damage . | . . . Shots . | . . . Rammed . | . . . Targets Rammed . | . . . Kicked . | . . . Crushed . | . . . Highest Temperature 30 | . 30 6 Average Temperature 7 | . 8 3 Received Heat Transfer 159 | . 111 48 Siege Activations . | . . . Robots Corrupted . | . . . Combat Hostiles . | . . . Parts Fried . | . . . Impact Corruptions . | . . . Robots Melted . | . . . Combat Hostiles . | . . . Parts Melted . | . . . Heat Transferred . | . . . Parts Sabotaged . | . . . Parts Stolen . | . . . Parts Stripped . | . . . Power Chain Reactions . | . . . Missiles Intercepted . | . . . Alert | -11 -10 -10 ------- Run | Scr Mat Min Peak Influence 214 | . 214 123 Initial 83 | . . 83 Average 65 | . 60 93 Maximum Alert Level 1 | . 1 . Low Security (%) 96 | 100 93 100 Level 1 3 | . 6 . Level 2 . | . . . Level 3 . | . . . Level 4 . | . . . Level 5 . | . . . High Security . | . . . Max Security . | . . . Squads Dispatched 1 | . 1 . Investigation 1 | . 1 . Extermination . | . . . Reinforcement . | . . . Assault . | . . . Garrison . | . . . Intercept . | . . . Construction Impeded . | . . . Haulers Reinforced . | . . . Stealth | -11 -10 -10 --------- Run | Scr Mat Min Distress Signals . | . . . Communications Jammed . | . . . Distress Signals . | . . . Times Spotted 28 | . 11 17 Peak Tracking Total 17 | . 3 17 Tactical Retreats . | . . . Traps | -11 -10 -10 ------- Run | Scr Mat Min Traps Triggered . | . . . Indirectly . | . . . Trap Hack Attempts . | . . . Triggered . | . . . Disarmed . | . . . Reprogrammed . | . . . Reused . | . . . Traps Extracted . | . . . Installed . | . . . Triggered . | . . . Machines | -11 -10 -10 ---------- Run | Scr Mat Min Machines Disabled . | . . . Max in Single Turn . | . . . Machines Sabotaged . | . . . Garrisons Compromised . | . . . Overloaded Fab Kills . | . . . Fab Network Shutdowns . | . . . Hacking | -11 -10 -10 --------- Run | Scr Mat Min Machines Accessed 2 | . 2 . Terminals 2 | . 2 . Fabricators . | . . . Repair Stations . | . . . Recycling Units . | . . . Scanalyzers . | . . . Garrison Access . | . . . Total Hacks 8 | . 8 . Successful 4 | . 4 . Failed 4 | . 4 . Catastrophic . | . . . Database Lockouts . | . . . Manual . | . . . Terminals 8 | . 8 . Fabricators . | . . . Repair Stations . | . . . Recycling Units . | . . . Scanalyzers . | . . . Garrison Access . | . . . Terminal Hacks 4 | . 4 . Record 2 | . 2 . Robot Analysis 1 | . 1 . Hauler Manifests 1 | . 1 . Fabricator Hacks . | . . . Repair Station Hacks . | . . . Recycling Unit Hacks . | . . . Scanalyzer . | . . . Garrison Access Hacks . | . . . Unauthorized Hacks . | . . . Terminals . | . . . Fabricators . | . . . Repair Stations . | . . . Recycling Units . | . . . Scanalyzers . | . . . Garrison Access . | . . . Data Cores Recovered . | . . . Used . | . . . Hacking Detections 2 | . 2 . Full Trace Events 2 | . 2 . Feedback Events . | . . . Feedback Blocked . | . . . Robot Schematics Acquired . | . . . Robots Built . | . . . Matter . | . . . Time . | . . . Total Robot Build Rating . | . . . Part Schematics Acquired . | . . . Parts Built . | . . . Matter . | . . . Time . | . . . Total Part Build Rating . | . . . Parts Repaired . | . . . Time . | . . . Parts Recycled . | . . . Recycled Matter . | . . . Retrieved Matter . | . . . Retrieved Components . | . . . Parts Scanalyzed . | . . . Part Schematics Acquired . | . . . Parts Damaged . | . . . Bothacking | -11 -10 -10 ------------ Run | Scr Mat Min Used RIF Installer . | . . . Robots Hacked . | . . . Non-combat . | . . . Combat . | . . . Robot Hacks Applied . | . . . Relay Couplers Released . | . . . Robots Rewired . | . . . Allies Hacked . | . . . Hacks Repelled . | . . . Allies | -11 -10 -10 -------- Run | Scr Mat Min Total Allies . | . . . Largest Group . | . . . Highest-Rated Group . | . . . Highest-Rated Ally . | . . . Total Orders . | . . . Ally Attacks . | . . . Total Damage . | . . . Kills . | . . . Allies Corrupted . | . . . Allies Melted . | . . . Intel | -11 -10 -10 ------- Run | Scr Mat Min Robot Analysis Total 1 | . 1 . Derelict Logs Recovered . | . . . Drone Launches . | . . . Drone Recoveries . | . . . Exploration | -11 -10 -10 ------------- Run | Scr Mat Min Turns Passed 579 | 55 331 193 Spaces Moved 436 | 50 237 149 Core 12 | 12 . . Treads . | . . . Legs . | . . . Wheels 424 | 38 237 149 Hover . | . . . Flight . | . . . Fastest Speed 50 | 50 90 100 Average Speed 97 | 80 97 103 Slowest Speed 120 | 90 100 120 Overloaded Moves . | . . . Propulsion Burnouts . | . . . Robots Hopped . | . . . Cave-ins Triggered . | . . . Exploration Rate (%) 30 | 3 44 44 Regions Visited 2 Branch Regions 1 Pre-discovered Areas . | . . . Known Exits Taken . | . . . Unknown Exits Taken 2 | 1 1 . Scrap Searched 2 | . . 2 Spaces Dug . | . . . Terrain Destroyed 5 | . . 5 Melee . | . . . Projectile . | . . . AOE 5 | . . 5 Terrain Rammed . | . . . Walls Destroyed . | . . . Machines Disabled . | . . . Actions | -11 -10 -10 --------- Run | Scr Mat Min Total 511 | 64 280 167 Wait . | . . . Move 434 | 49 236 149 Hop . | . . . Pick Up 20 | 9 8 3 Fast Attach . | . . . Attach 8 | 6 1 1 Detach . | . . . Swap 7 | . 4 3 Drop 2 | . 1 1 Fire 40 | . 30 10 Melee . | . . . Ram . | . . . Kick . | . . . Crush . | . . . Escape Stasis . | . . . Rewire . | . . . Trap . | . . . Miscellaneous . | . . . Route ------- -11/Scrapyard -10/Materials (discovered 2 exits: [*Mat] / [*Min]) -10/Mines (discovered 3 exits: [*Mat x2] / [*Exi]) History --------- Turn | Location | Event 10 | -11/Scrapyard | Discovered new exit (range 15) 56 | -11/Scrapyard | Entered Materials 204 | -10/Materials | Discovered new exit (range 10) 277 | -10/Materials | Discovered new exit (range 13) 309 | -10/Materials | Build established: Mutant 387 | -10/Materials | Entered Mines 465 | -10/Mines | Deemed a non-threat by the Exiles lab entrance 465 | -10/Mines | Discovered new exit (range 5) 482 | -10/Mines | Discovered new exit (range 6) 568 | -10/Mines | Assembled infested the area 569 | -10/Mines | Discovered new exit (range 11) 572 | -10/Mines | Core integrity fell below 50% 578 | -10/Mines | Core integrity fell below 20% 580 | -10/Mines | Destroyed by as-44932 with Assembled Maul Last Messages --------------- 00540_ Acquired Lgt. Nuclear Core. 00540_ R-06 Scavenger collects Aluminum Leg. 00541_ Acquired 43 matter. 00564_ R-06 Scavenger collects Imp. Heat Sink. 00568_ ALERT: Infestation in the mines, dispatching Demolisher response squad. 00569_ C-30 ARC bursts open, deploying its payload. 00569_ D-53 Grenadier unfolds itself. 00569_ T-07 Excavator destroyed. 00569_ EXIT=FOUND 00571_ U-05 Engineer builds a Wall. 00571_ K-01 Serf collects debris. 00572_ U-05 Engineer destroyed. 00574_ Lgt. Nuclear Core destroyed. 00574_ K-01 Serf destroyed. 00574_ R-06 Scavenger collects Wheel. 00575_ Grenade Launcher destroyed. 00576_ Com. Wheel destroyed. 00577_ K-01 Serf collects debris. 00577_ D-53 Grenadier destroyed. 00578_ U-05 Engineer lays Concrete. Map ----- +----------------------------------------------------+ | ?## ##??# #???????????????????????????????????? | | ??# ##?# #???????????????????????????????????? | | ??# #?# #???????????????????????????????????? | | ?## ### ######??????????????????????????????? | | ## |!#??????????????????????????????? | | # #??????????????????????????????? | | # ####### !#??????????????????????????????? | | # #?????# ???????????????????????????? | | ## ##?????# ???????????????????????? | | ?## #??????######### #?????????????????????? | | ??## ##???????????????? #?????????????????????? | | ??## #???????????????????????????????????????? | | ?## #???????????????????????????????????????? | | ?# ##???##????????? ????????????????????????? | | ?# #???## #???????? ????????????????????????? | | ?# ##??# #??????? ????????????????????????? | | ?## #??# #?????? ????????????????????????? | | ??# #???# #????? ????####????????????????? | | ??# ##???# #??#? ???# #####????????????? | | ??# ####?????# #?# ### aa ?????????????? | | ??# #?????????# ## aaa???????????????? | | ??# #??????????# # # [ a#????????????????? | | ??# #??????????# a ##???????????????? | | ??# #??????????# a #???????????????? | | ??# #???????????# a #???????????????? | | ??# #???????????# @a a [#???????????????? | | ??# #???????????## r a #???????????????? | | ??# #????????????## d #????????????? | | ??# #?????????????# r # ] #????????????? | | ??# #?????????????# # ##? %=k ??????????? | | ??# # ######## #######????%! [ u??????????? | | ??# # #???????????< #??????????? | | ??# ## #### ## #####????????? ##??????????? | | ??# !#?????????# ## ##?????????????????????? | | ### !#????????## #?????????????????????? | | [ !#????????# #?????????????????????? | | #### #????????# ##?????????????????????? | | #??# #???##??## ##??????????????????????? | | #??# #??## ### ##???????????????????????? | | ???# #### ##???????????????????????? | | ???# # ##??????????????????????? | | ???#### ## #??????????????????????? | | ??????# ### #??????????????????????? | | ??????## ##### #??????????????????????? | | ?????## ### # ##??????????????????????? | | ??#### ## ## ###???????????????????????? | | ??# < ## ### ##?????????????????????????? | | ?# #?####??????????????????????????? | | ?## #???????????????????????????????? | | ??################???????????????????????????????? | +----------------------------------------------------+ Best States ------------- Heat Dissipation 25 Energy Generation 14 Energy Capacity 250 Matter Stores 300 Matter Capacity 300 Sight Range 16 Terrain Scan Density 10 Evasion (%) 50 Item Schematics ----------------- None Robot Schematics ------------------ None Fabricated ------------ Nothing Alien Tech Used ----------------- None Achievements -------------- None Challenges ------------ None Game ------ Seed NeutrinoMinesnifferAnalyzer Manual? 0 Play Time 00:09:38 Cumulative 30.2 hours Start 2022.02.06 @ 14:17:35 End 2022.02.06 @ 14:25:36 Sessions 1 Manual Loads 0 Difficulty Rogue Special Mode None Game No. 41 Rogue 38 Adventurer 3 Explorer 0 Win Type - Total 0 Types 0/0/0/0/0/0/0/0/0 Lore% 7 Gallery% 20 Achievement% 13 Wizard Run 0 Options --------- ASCII 0 Keyboard 0 Movement Mouse Keybinds 0 Fullscreen 1 Font 24/Proggy Map View 113x50 Tactical HUD 1 Map Filters NONE Filters NONE Steam 1 RUN: b7a10fa8-fb96-4228-ab87-cdf594560808